Cogmind - Beta 14 @@@ ROGUE MODE // 2024.08.08 @ 18:39:19 Player: MrProgressor Result: Destroyed by 78-H0J(R) with Subdweller Laser Performance ------------- Evolutions (0) 0 Regions Visited (3) 600 Robots Destroyed (17) 85 Value Destroyed (260) 260 Prototype IDs (2) 40 Alien Tech Used (0) 0 Bonus (0) 0 TOTAL SCORE: 985 Bonus ------- None Cogmind --------- Core Integrity 0/250 Matter 300/300 Energy 100/100 System Corruption 0% Temperature Cool (6) Movement Treading (240) Ox1 Location -10/Subcaves Parts ------- > --- POWER (1) -------- (None) > --- PROPULSION (2) --- Light Treads Light Treads > --- UTILITY (2) ------ High-capacity Storage Unit Structural Scanner > --- WEAPON (2) ------- Grenade Launcher Mining Claw > --- INVENTORY (20) --- Light Ion Engine Light Treads Light Treads Light Treads Improved Heat Sink Huge Storage Unit Huge Storage Unit Medium Battery (150) Sensor Array Signal Interpreter Terrain Scanner Scrap Shield Particle Gun Light Assault Rifle Subdweller Machine Gun Flamer Mining Claw Mining Claw Scrap Shield Fragment (40) Peak State ------------ > --- POWER ------------ Ion Engine > --- PROPULSION ------- Light Treads Light Treads > --- UTILITY ---------- Small Storage Unit High-capacity Storage Unit > --- WEAPON ----------- Particle Gun Light Assault Rifle > --- INVENTORY -------- Ion Engine Light Ion Engine Light Treads Light Treads Light Treads Light Treads Hover Unit Hover Unit Large Storage Unit Visual Processing Unit Sensor Array Signal Interpreter Terrain Scanner EM Pulse Gun Light Assault Rifle Mining Claw Mining Claw Mining Claw Mining Claw [Rating: 10] Favorites ----------- Power Ion Engine Engine Ion Engine Propulsion Light Treads Treads Light Treads Wheel Compact Wheel Utility High-capacity Storage Unit Device Structural Scanner Storage High-capacity Storage Unit Weapon Light Assault Rifle Energy Gun Particle Gun Ballistic Gun Light Assault Rifle Launcher Grenade Launcher Slashing Weapon Mining Claw Build | -11 -10 -10 -10 ------- Run | Yrd Mat Min Sub Slots Evolved . | . . . . Power . | . . . . Propulsion . | . . . . Utility . | . . . . Weapon . | . . . . Parts Attached 23 | 5 13 5 . Power 4 | 1 . 3 . Engine 4 | 1 . 3 . Core . | . . . . Reactor . | . . . . Propulsion 6 | 2 4 . . Treads 4 | . 4 . . Leg . | . . . . Wheel 2 | 2 . . . Hover . | . . . . Flight . | . . . . Utility 6 | 1 5 . . Device 3 | . 3 . . Storage 3 | 1 2 . . Processor . | . . . . Hackware . | . . . . Protection . | . . . . Artifact . | . . . . Weapon 7 | 1 4 2 . Energy Gun 2 | . 2 . . Energy Cannon . | . . . . Ballistic Gun 3 | 1 2 . . Ballistic Cannon . | . . . . Launcher 1 | . . 1 . Special Weapon . | . . . . Impact Weapon . | . . . . Slashing Weapon 1 | . . 1 . Piercing Weapon . | . . . . Special Melee Weapon . | . . . . Unidentified Prototypes . | . . . . Parts Lost 5 | . . 4 1 Power 4 | . . 3 1 Propulsion . | . . . . Utility . | . . . . Weapon 1 | . . 1 . Highest Loss Streak 3 | . . 3 1 To Critical Strikes 1 | . . 1 . Average Slot Usage (%) 94 | . 96 86 98 Engine 12 | . 14 10 12 Treads 27 | . 26 28 28 Device 12 | . 11 14 14 Storage 14 | . 14 14 14 Energy Gun 9 | . 13 5 . Ballistic Gun 9 | . 14 5 . Launcher 4 | . . 8 14 Slashing Weapon 2 | . . . 14 Peak Build Rating 10 | 5 10 10 9 Average Rating 8 | 4 8 8 8 On Entrance 6 | . 5 10 9 Naked Turns . | . . . . Heaviest Build 51 | 11 51 51 49 Greatest Support 40 | 26 40 40 40 Greatest Overweight (x) 1 | . 1 1 1 Average Overweight (x) . | . . 1 1 Largest Inventory Capacity 20 | 8 20 20 20 Average Capacity 18 | 7 18 20 20 Most Carried 20 | 7 20 20 20 Average Carried 17 | 4 16 18 18 Final Capacity 20 | 8 20 20 20 Final Carried 20 | 7 20 18 20 Class Distribution -------------------- 100% | Mutant Dominant Class ---------------- Mutant | -10/Materials Mutant | -10/Mines Mutant | -10/Subcaves Resources | -11 -10 -10 -10 ----------- Run | Yrd Mat Min Sub Matter Collected 497 | 224 139 124 10 Remotely . | . . . . Salvage Created 387 | . 256 131 . Parts 36 | . 25 11 . Haulers Intercepted . | . . . . Recyclers Shooed . | . . . . Parts Field Recycled . | . . . . Retrieved Matter . | . . . . Parts Self-Destructed . | . . . . Prevented . | . . . . Kills | -11 -10 -10 -10 ------- Run | Yrd Mat Min Sub Combat Hostiles Destroyed 12 | . 8 4 . Guns 9 | . 8 1 . AOE 3 | . . 3 . Classes Destroyed 5 | . 4 1 . Worker 1 | . 1 . . Recycler 1 | . . 1 . Watcher 3 | . 3 . . Swarmer 9 | . 6 3 . Grunt 3 | . 2 1 . Best Kill Streak 4 | . 3 4 . Combat Bots Only 3 | . 3 3 . Max Kills in Single Turn 3 | . 1 3 . Gunslinging . | . . . . Exploded 2 | . . 2 . Melee . | . . . . Uniques/NPCs Destroyed . | . . . . Combat | -11 -10 -10 -10 -------- Run | Yrd Mat Min Sub Hostile Shots Fired 90 | . 46 32 12 Missed 23 | . 10 10 3 Damage Taken 1100 | . 375 543 182 Core 257 | . 69 128 60 Absorbed by Shields . | . . . . Core Remaining (%) 100 | 100 . . . Volleys Fired 42 | . 29 13 . Largest 2 | . 2 2 . Hottest 85 | . 85 85 . Shots Fired 82 | . 58 24 . Gun 79 | . 58 21 . Cannon . | . . . . Launcher 3 | . . 3 . Special . | . . . . Kinetic 40 | . 29 11 . Thermal 39 | . 29 10 . Explosive 3 | . . 3 . Electromagnetic . | . . . . Robot Hit Streak 9 | . 9 5 . Robot Miss Streak 4 | . 4 2 . Penetration Max . | . . . . Secondary Targets . | . . . . Shots Hit Robots 54 | . 35 14 5 Core Hits 29 | . 20 9 . Critical Kills . | . . . . Critical Parts Destroyed . | . . . . Critical Strikes 1 | . 1 . . Burn 1 | . 1 . . Melee Attacks 9 | . . 1 8 Impact . | . . . . Slashing 9 | . . 1 8 Piercing . | . . . . Sneak Attacks . | . . . . Combat Hostiles . | . . . . Follow-up Attacks . | . . . . Damage Inflicted 803 | . 372 383 48 Guns 526 | . 363 163 . Cannons . | . . . . Explosions 219 | . . 219 . Melee 48 | . . . 48 Ramming 10 | . 9 1 . Kinetic 209 | . 110 99 . Thermal 317 | . 253 64 . Explosive 219 | . . 219 . Electromagnetic . | . . . . Impact . | . . . . Slashing 48 | . . . 48 Piercing . | . . . . Highest Corruption . | . . . . Average Corruption . | . . . . Corruption Purged . | . . . . Corruption Blocked . | . . . . Overload Shots . | . . . . Overflow Damage . | . . . . Projectiles . | . . . . Explosions . | . . . . Melee . | . . . . Knockbacks . | . . . . Impact . | . . . . Kinetic . | . . . . Secondary . | . . . . Self-Inflicted Damage 14 | . . 14 . Shots 1 | . . 1 . Rammed 2 | . 1 1 . Targets Rammed 2 | . 1 1 . Kicked . | . . . . Crushed . | . . . . Highest Temperature 177 | . 159 177 . Average Temperature 60 | . 43 96 . Received Heat Transfer 189 | . 99 36 54 Siege Activations . | . . . . Robots Corrupted . | . . . . Combat Hostiles . | . . . . Parts Fried . | . . . . Impact Corruptions . | . . . . Robots Melted . | . . . . Combat Hostiles . | . . . . Parts Melted . | . . . . Heat Transferred 808 | . 660 148 . Parts Sabotaged . | . . . . Parts Stolen . | . . . . Parts Stripped . | . . . . Power Chain Reactions . | . . . . Alert | -11 -10 -10 -10 ------- Run | Yrd Mat Min Sub Peak Influence 144 | . 144 97 . Initial 8 | . . 8 . Average 55 | . 58 54 . Maximum Alert Level . | . . . . Low Security (%) 100 | 100 100 100 . Level 1 . | . . . . Level 2 . | . . . . Level 3 . | . . . . Level 4 . | . . . . Level 5 . | . . . . High Security . | . . . . Max Security . | . . . . Squads Dispatched . | . . . . Investigation . | . . . . Extermination . | . . . . Reinforcement . | . . . . Assault . | . . . . Garrison . | . . . . Intercept . | . . . . Searches Triggered . | . . . . Construction Impeded . | . . . . Haulers Reinforced . | . . . . Active Scanning Responses . | . . . . Cargo Convoy Interrupts . | . . . . Stealth | -11 -10 -10 -10 --------- Run | Yrd Mat Min Sub Distress Signals 1 | . 1 . . Communications Jammed . | . . . . Distress Signals . | . . . . Times Spotted 25 | . 17 5 3 Peak Tracking Total 3 | . 3 3 2 Tactical Retreats 4 | . 2 . 2 Traps | -11 -10 -10 -10 ------- Run | Yrd Mat Min Sub Traps Triggered . | . . . . Indirectly . | . . . . Trap Hack Attempts . | . . . . Triggered . | . . . . Disarmed . | . . . . Reprogrammed . | . . . . Reused . | . . . . Traps Extracted . | . . . . Installed . | . . . . Triggered . | . . . . Machines | -11 -10 -10 -10 ---------- Run | Yrd Mat Min Sub Machines Disabled . | . . . . Max in Single Turn . | . . . . Machines Repaired . | . . . . Machines Dismantled . | . . . . Machines Sabotaged . | . . . . Overloaded Fab Kills . | . . . . Hacking | -11 -10 -10 -10 --------- Run | Yrd Mat Min Sub Machines Accessed 5 | . 5 . . Terminals 3 | . 3 . . Fabricators . | . . . . Repair Stations 1 | . 1 . . Recycling Units 1 | . 1 . . Scanalyzers . | . . . . Garrison Access . | . . . . Total Hacks 9 | . 9 . . Successful 4 | . 4 . . Failed 5 | . 5 . . Catastrophic 1 | . 1 . . Database Lockouts . | . . . . Manual 2 | . 2 . . Terminals 7 | . 7 . . Fabricators . | . . . . Repair Stations 1 | . 1 . . Recycling Units 1 | . 1 . . Scanalyzers . | . . . . Garrison Access . | . . . . Terminal Hacks 2 | . 2 . . Prototype ID Bank 1 | . 1 . . Recall Investigation 1 | . 1 . . Fabricator Hacks . | . . . . Repair Station Hacks . | . . . . Recycling Unit Hacks . | . . . . Scanalyzer . | . . . . Garrison Access Hacks . | . . . . Unauthorized Hacks 2 | . 2 . . Terminals . | . . . . Fabricators . | . . . . Repair Stations 1 | . 1 . . Mechanics 1 | . 1 . . Recycling Units 1 | . 1 . . Reject 1 | . 1 . . Scanalyzers . | . . . . Garrison Access . | . . . . Data Cores Recovered . | . . . . Used . | . . . . Hacking Detections 3 | . 3 . . Full Trace Events 1 | . 1 . . Feedback Events . | . . . . Feedback Blocked . | . . . . Robot Schematics Acquired . | . . . . Robots Built . | . . . . Authchips . | . . . . Time . | . . . . Total Robot Build Rating . | . . . . Part Schematics Acquired . | . . . . Parts Built . | . . . . Authchips . | . . . . Time . | . . . . Total Part Build Rating . | . . . . Parts Repaired . | . . . . Time . | . . . . Parts Recycled . | . . . . Recycled Matter . | . . . . Retrieved Matter . | . . . . Retrieved Components . | . . . . Parts Scanalyzed . | . . . . Part Schematics Acquired . | . . . . Parts Damaged . | . . . . Bothacking | -11 -10 -10 -10 ------------ Run | Yrd Mat Min Sub Used RIF Installer . | . . . . Robots Hacked . | . . . . Non-combat . | . . . . Combat . | . . . . Robot Hacks Applied . | . . . . Relay Couplers Released . | . . . . Fabnet Peak Effective % . | . . . . Robots Rewired . | . . . . Allies Hacked . | . . . . Hacks Repelled . | . . . . Allies | -11 -10 -10 -10 -------- Run | Yrd Mat Min Sub Total Allies . | . . . . Largest Group . | . . . . Highest-Rated Group . | . . . . Highest-Rated Ally . | . . . . Total Orders . | . . . . Ally Attacks . | . . . . Total Damage . | . . . . Kills . | . . . . Allies Corrupted . | . . . . Allies Melted . | . . . . Intel | -11 -10 -10 -10 ------- Run | Yrd Mat Min Sub Robot Analysis Total . | . . . . Derelict Logs Recovered 1 | . . 1 . Drone Launches . | . . . . Drone Recoveries . | . . . . Exploration | -11 -10 -10 -10 ------------- Run | Yrd Mat Min Sub Turns Passed 1802 | 54 1025 449 274 Spaces Moved 706 | 44 396 164 102 Core 1 | 1 . . . Treads 623 | . 357 164 102 Legs . | . . . . Wheels 82 | 43 39 . . Hover . | . . . . Flight . | . . . . Fastest Speed 50 | 50 90 240 240 Average Speed 218 | 91 218 240 240 Slowest Speed 240 | 100 240 240 240 Overloaded Moves . | . . . . Propulsion Burnouts . | . . . . Robots Hopped . | . . . . Cave-ins Triggered . | . . . . Exploration Rate (%) 26 | 4 67 24 10 Regions Visited 3 Branch Regions 2 Pre-discovered Areas . | . . . . Known Exits Taken . | . . . . Unknown Exits Taken 3 | 1 1 1 . Scrap Searched 2 | . . . 2 Spaces Dug . | . . . . Terrain Destroyed 14 | . . 14 . Melee . | . . . . Projectile . | . . . . AOE 14 | . . 14 . Terrain Rammed . | . . . . Walls Destroyed . | . . . . Machines Disabled . | . . . . Actions | -11 -10 -10 -10 --------- Run | Yrd Mat Min Sub Total 870 | 55 507 192 116 Wait 33 | . 27 6 . Move 703 | 43 395 163 102 Hop . | . . . . Pick Up 36 | 7 24 2 3 Fast Attach 9 | 5 3 1 . Attach 5 | . 2 3 . Detach 1 | . 1 . . Swap 9 | . 8 1 . Drop 21 | . 17 1 3 Fire 42 | . 29 13 . Melee 9 | . . 1 8 Ram . | . . . . Kick . | . . . . Crush 2 | . 1 1 . Escape Stasis . | . . . . Rewire . | . . . . Trap . | . . . . Miscellaneous . | . . . . Route ------- -11/Scrapyard -10/Materials (discovered 2 exits: [*Mat] / [*Min]) -10/Mines (discovered 2 exits: [*Mat] / [*Sub]) -10/Subcaves History --------- Turn | Location | Event 10 | -11/Scrapyard | Discovered new exit (range 16) 55 | -11/Scrapyard | Entered Materials 271 | -10/Materials | Discovered new exit (range 16) 308 | -10/Materials | Build established: Mutant 622 | -10/Materials | Discovered new exit (range 8) 1080 | -10/Materials | Entered Mines 1084 | -10/Mines | YI-UF0 nonchalantly dropped a Grenade Launcher on the ground 1127 | -10/Mines | Core integrity fell below 50% 1135 | -10/Mines | Met a Derelict bent on vengeance 1174 | -10/Mines | Lost 3 parts (3p) 1244 | -10/Mines | Discovered new exit (range 5) 1438 | -10/Mines | Discovered new exit (range 16) 1529 | -10/Mines | Entered Subcaves 1775 | -10/Subcaves | Core integrity fell below 20% 1803 | -10/Subcaves | Destroyed by 78-H0J(R) with Subdweller Laser Last Messages --------------- LOCATION=UNKNOWN AMBIENT_HEAT=-10 GOAL=ESCAPE 01705_ 3K-HCQ(R) Sub. Machine Gun ripped off. 01727_ Acquired Scrap Shield Fragment. 01733_ Searching scrap... 01733_ Found Scrap Shield. 01733_ Found 37 Matter. 01734_ Acquired 10 matter. 01735_ Searching scrap... 01735_ Found Flamer. 01735_ Found 36 Matter. 01737_ Dropped Sensor Array. 01738_ Dropped Signal Interpreter. 01738_ Signal Interpreter crushed and broken. 01742_ Subatomizers dissect the Flamer. 01743_ Acquired Scrap Shield. 01747_ Dropped Mining Claw. 01747_ Acquired Flamer. 01772_ Lgt. Ion Engine destroyed. Map ----- +----------------------------------------------------+ | | | ?????????????????????????????????????????????????? | | ?????????????????????????????????????????????????? | | ?????????????????????????????????????????????????? | | ?????????????????????????????????????????????????? | | ?????????????????????????????????????????????????? | | ?????????????????????????????????????????????????? | | ?????????????????????????????????????????????????? | | ?????????????????????????????????????????????????? | | ?????????????????????????????????????????????????? | | ?????????????????????????????????????????????????? | | ?????????????????????????????????????????????????? | | ?????????????????????????????????????????????????? | | ?????????????????????????????????????????????????? | | ???????????????#########?????????????????????????? | | ???????????????#########?????????????????????????? | | ???????????????##"!/ "##?????????????????????????? | | ?????????#####?## ##%%##?????????????????????????? | | ??############### ########??????????????????????? | | ?########## ###### "########?????????????????????? | | #### ### ##### ## # ####????????????????????? | | ### ## ###" " #####??????????????????? | | # ## #####?????????????????? | | "" ####????????????????? | | ## ### " " ###????????????????? | | #### ######## @ """"##????????????????? | | ########## ########## "R"""###????????????????? | | ###############???## """""###????????????????? | | ############?????## """" ###????????????????? | | ### ##???????####" "##????????????????? | | ###??????? ### ##???????????????? | | ####??????????## ##???????????????? | | # #####??????????## ###???????????????? | | ### ###???????????? ###???????????????? | | #### ##?????????????? ??? ##????????????????? | | ###### ###?????????????? ???????????????????????? | | ??### # ??????????????????????????????????????? | | ?????### ??????????????????????????????????????? | | ?????##### ??????????????????????????????????????? | | ???????## ?????????????????????????????????????? | | ??????????? ???????????????????????????????????? | | ???????????## ???????????????????????????????????? | | ???????????###???????????????????????????????????? | | ?????????????????????????????????????????????????? | | ?????????????????????????????????????????????????? | | ?????????????????????????????????????????????????? | | ?????????????????????????????????????????????????? | | ?????????????????????????????????????????????????? | | ?????????????????????????????????????????????????? | | ?????????????????????????????????????????????????? | +----------------------------------------------------+ Best States ------------- Heat Dissipation 35 Energy Generation 10 Energy Capacity 250 Matter Stores 300 Matter Capacity 300 Sight Range 16 Robot Scan Range 14 Terrain Scan Density 10 Evasion (%) 42 Recoil Reduction 2 Item Schematics ----------------- None Robot Schematics ------------------ None Fabricated ------------ Nothing Alien Tech Used ----------------- None Achievements -------------- None Challenges ------------ None Game ------ Seed ArmageddonDynamicShotgun Manual? 0 Play Time 00:25:41 Cumulative 201.0 hours Start 2024.08.08 @ 18:12:45 End 2024.08.08 @ 18:39:19 Sessions 1 Manual Loads 0 Difficulty Rogue Special Mode None Game No. 65 Rogue 65 Adventurer 0 Explorer 0 Win Type - Total 2 Types 2/0/0/0/0/0/0/0/0 Lore% 34 Gallery% 61 Achievement% 52 Wizard Run 0 Options --------- Layout 0 ASCII 0 Keyboard 0 Movement Mouse Keybinds 1 Fullscreen 2 Font 18/SmallcapsGlow Map View 76x50 Zoom Use 0% Tactical HUD 1 Map Filters NONE Filters NONE Steam 1 RUN: b083f09a-845e-47c2-bb05-2af469864b0b